bitfinex-derivatives/quotes_BTCF0:USTF0_20241122
["timestamp","ask_amount","ask_price","bid_price","bid_amount"]
[1732309900764,0.3608,98884.0,98883.0,0.13348]
[1732309901566,0.411306,98884.0,98883.0,0.13348]
[1732309901767,0.3608,98884.0,98883.0,0.13348]
[1732309902365,0.411306,98884.0,98883.0,0.13348]
[1732309903675,0.411306,98884.0,98868.0,0.03463379]
[1732309903676,0.050506,98883.0,98868.0,0.13348]
[1732309903866,0.3608,98869.0,98868.0,0.13348]
[1732309904171,0.14696815,98878.0,98868.0,0.13348]
[1732309904566,0.050511,98875.0,98868.0,0.13348]
[1732309905072,0.050511,98874.0,98869.0,0.13348]
[1732309905267,0.050511,98875.0,98869.0,0.13348]
[1732309905573,0.050511,98874.0,98869.0,0.13348]
[1732309906270,0.3608,98876.0,98869.0,0.13348]
[1732309907771,0.41131,98876.0,98869.0,0.13348]
[1732309908073,0.3608,98876.0,98869.0,0.13348]
[1732309908571,0.3608,98876.0,98872.0,0.050511]
[1732309908771,0.3608,98876.0,98869.0,0.13348]
[1732309910167,0.3608,98876.0,98871.0,0.050512]
[1732309910369,0.3608,98876.0,98869.0,0.13348]
[1732309910566,0.3608,98876.0,98872.0,0.00113332]
[1732309911560,0.3608,98876.0,98874.0,0.00113332]
[1732309912168,0.05051,98875.0,98874.0,0.00113332]
[1732309912367,0.3608,98876.0,98874.0,0.00113332]
[1732309912569,0.3608,98876.0,98875.0,0.00113332]
[1732309914878,0.3608,98876.0,98875.0,0.12845332]
[1732309917069,0.41131,98876.0,98875.0,0.12845332]
[1732309918273,0.3608,98876.0,98875.0,0.00113332]
[1732309918475,0.41131,98876.0,98875.0,0.00113332]
[1732309919376,0.71471,98876.0,98865.0,0.33928]
[1732309919569,0.411315,98866.0,98865.0,0.4666]
[1732309919776,0.411315,98866.0,98865.0,0.12732]
[1732309919974,0.050523,98851.0,98842.0,0.050527]
[1732309920171,0.411324,98849.0,98848.0,0.12732]
[1732309921468,0.3608,98849.0,98848.0,0.12732]
[1732309922373,0.3608,98849.0,98839.0,0.33928]
[1732309922687,0.411324,98849.0,98847.0,0.12247758]
[1732309923675,0.3608,98849.0,98847.0,0.12247758]
[1732309923981,0.3608,98849.0,98848.0,0.30348]
[1732309924171,0.3608,98866.0,98848.0,0.30348]
[1732309924370,0.3608,98866.0,98857.0,0.050519]
[1732309924674,0.3608,98866.0,98859.0,0.050518]
[1732309924870,0.00151784,98871.0,98850.0,0.14696815]
[1732309925271,0.00151784,98871.0,98867.0,0.050514]
[1732309925470,0.00151784,98871.0,98868.0,0.121]
[1732309926378,0.03618654,98871.0,98868.0,0.121]
[1732309926570,0.00151784,98871.0,98868.0,0.121]
[1732309927467,0.3608,98869.0,98868.0,0.050514]
[1732309927676,0.00151784,98871.0,98870.0,0.050513]
[1732309929078,0.36231784,98871.0,98870.0,0.050513]
[1732309929277,0.00151784,98871.0,98870.0,0.050513]
[1732309929982,0.00151784,98871.0,98869.0,0.12096]
[1732309930573,0.00151784,98871.0,98870.0,0.050513]
[1732309931786,0.1,98900.0,98871.0,0.050512]
[1732309931980,0.1,98900.0,98887.0,0.050504]
[1732309932181,0.13456891,98900.0,98888.0,0.12096]
[1732309932788,0.13456891,98900.0,98888.0,0.171463]
[1732309933183,0.13456891,98900.0,98890.0,0.09793101]
[1732309933683,0.13456891,98900.0,98899.0,0.411298]
[1732309935187,0.13456891,98900.0,98899.0,0.050498]
[1732309935380,0.13456891,98900.0,98894.0,0.0505]
[1732309935687,0.13456891,98900.0,98889.0,0.3608]
[1732309936283,0.13456891,98900.0,98890.0,0.050503]
[1732309936483,0.13456891,98900.0,98899.0,0.050498]
[1732309936979,0.1,98900.0,98899.0,0.411298]
[1732309937390,0.3608,98927.0,98899.0,0.411298]
[1732309937586,0.3608,98927.0,98910.0,0.050492]
[1732309937788,0.3608,98927.0,98911.0,0.12096]
[1732309938092,0.3608,98927.0,98899.0,0.411298]
[1732309938093,0.3608,98927.0,98912.0,0.12096]
[1732309938389,0.3608,98927.0,98913.0,0.12096]
[1732309938590,0.3608,98927.0,98916.0,0.050489]
[1732309939187,0.3608,98927.0,98913.0,0.12096]
[1732309939691,0.3608,98927.0,98913.0,0.171451]
[1732309940492,0.3608,98927.0,98914.0,0.05049]
[1732309940692,0.3608,98927.0,98915.0,0.05049]
[1732309942095,0.3608,98927.0,98899.0,0.36136]
[1732309942290,0.3608,98916.0,98900.0,0.12092]
[1732309942487,0.3608,98916.0,98902.0,0.050496]
[1732309942690,0.3608,98916.0,98903.0,0.050496]
[1732309943096,0.3608,98916.0,98900.0,0.12092]
[1732309943296,0.050491,98914.0,98900.0,0.171417]
[1732309943500,0.3608,98916.0,98902.0,0.050496]
[1732309943888,0.3608,98904.0,98902.0,0.050496]
[1732309944091,0.3608,98904.0,98900.0,0.12092]
[1732309944392,0.3608,98901.0,98900.0,0.12092]
[1732309944697,0.3608,98901.0,98876.0,0.050509]
[1732309944698,0.3608,98901.0,98893.0,0.050501]
[1732309944885,0.3608,98901.0,98894.0,0.12092]
[1732309945085,0.3608,98901.0,98894.0,0.17142]
[1732309945287,0.3608,98901.0,98899.0,0.050498]
[1732309945493,0.3608,98904.0,98899.0,0.050498]
[1732309945999,0.050491,98913.0,98899.0,0.050498]
[1732309946188,0.08486534,98913.0,98899.0,0.050498]
[1732309946388,0.03437434,98913.0,98894.0,0.12092]
[1732309946589,0.3608,98897.0,98894.0,0.12092]
[1732309946801,0.3608,98897.0,98894.0,0.17142]
[1732309947100,0.05049,98915.0,98898.0,0.050498]
[1732309947289,0.05049,98915.0,98891.0,0.0201598]
[1732309947490,0.05049,98915.0,98899.0,0.12092]
[1732309947685,0.3608,98916.0,98899.0,0.171418]
[1732309947989,0.050491,98914.0,98899.0,0.171418]
[1732309948197,0.39490888,98916.0,98903.0,0.050496]
[1732309948392,0.39490888,98916.0,98899.0,0.12092]
[1732309948595,0.39490888,98916.0,98905.0,0.050495]
[1732309948898,0.39490888,98916.0,98907.0,0.050494]
[1732309949485,0.3608,98910.0,98899.0,0.12092]
[1732309949688,0.03410888,98916.0,98906.0,0.050494]
[1732309949893,0.050486,98924.0,98906.0,0.050494]
[1732309950093,0.050486,98924.0,98895.0,0.3608]
[1732309950094,0.3608,98914.0,98907.0,0.12092]
[1732309950290,0.3608,98914.0,98895.0,0.3608]
[1732309950291,0.3608,98914.0,98908.0,0.12092]
[1732309952496,0.050492,98912.0,98908.0,0.12092]
[1732309952997,0.3608,98914.0,98908.0,0.12092]
[1732309953186,0.050492,98911.0,98908.0,0.12092]
[1732309953392,0.3608,98914.0,98908.0,0.12092]
[1732309953587,0.3608,98914.0,98909.0,0.11704]
[1732309954299,0.050491,98913.0,98909.0,0.11704]
[1732309954798,0.3608,98911.0,98909.0,0.11704]
[1732309954998,0.3608,98911.0,98884.0,0.00151698]
[1732309954999,0.3908,98910.0,98884.0,0.00151698]
[1732309955199,0.3608,98899.0,98885.0,0.11704]
[1732309955702,0.3608,98899.0,98889.0,0.050503]
[1732309955896,0.3608,98899.0,98885.0,0.11704]
[1732309956099,0.3608,98899.0,98892.0,0.050502]
[1732309956404,0.3608,98899.0,98891.0,0.050502]
[1732309956699,0.3608,98899.0,98885.0,0.11704]
[1732309956894,0.3608,98886.0,98884.0,0.00151698]
[1732309957096,0.3608,98899.0,98885.0,0.11704]
[1732309957097,0.7516,98899.0,98885.0,0.11704]
[1732309957295,0.3608,98886.0,98885.0,0.11704]
[1732309963306,0.3608,98886.0,98885.0,0.11708]
[1732309966910,0.3608,98886.0,98885.0,0.15075195]
[1732309972509,0.3608,98886.0,98885.0,0.20125695]
[1732309973107,0.3608,98899.0,98885.0,0.50465695]
[1732309973417,0.3608,98899.0,98896.0,0.050499]
[1732309973615,0.3608,98909.0,98897.0,0.050499]
[1732309973805,0.39403971,98909.0,98897.0,0.050499]
[1732309974007,0.39403971,98909.0,98885.0,0.15075195]
[1732309974204,0.3608,98898.0,98887.0,0.050504]
[1732309974514,0.3608,98898.0,98885.0,0.15075195]
[1732309974707,0.0505,98896.0,98886.0,0.11708]
[1732309975113,0.3608,98889.0,98886.0,0.11708]
[1732309975319,0.0505,98896.0,98886.0,0.11708]
[1732309975616,0.050499,98897.0,98886.0,0.11708]
[1732309975807,0.3608,98889.0,98886.0,0.11708]
[1732309976210,0.050499,98897.0,98886.0,0.11708]
[1732309976514,0.3608,98889.0,98886.0,0.11708]
[1732309977519,0.3608,98889.0,98886.0,0.167585]
[1732309977914,0.09792227,98900.0,98888.0,0.050504]
[1732309978816,0.411297,98901.0,98888.0,0.050504]
[1732309979118,0.3608,98889.0,98888.0,0.050504]
[1732309979921,0.3608,98889.0,98886.0,0.11708]
[1732309979922,0.36200001,98901.0,98886.0,0.11708]
[1732309980216,0.3608,98889.0,98886.0,0.11708]
[1732309980407,0.3608,98901.0,98886.0,0.11708]
[1732309980614,0.3608,98889.0,98888.0,0.050503]
[1732309980810,0.3608,98889.0,98887.0,0.050504]
[1732309981018,0.3608,98889.0,98886.0,0.11708]
[1732309982712,0.3608,98889.0,98884.0,0.00151698]
[1732309983121,0.411305,98885.0,98884.0,0.00151698]
[1732309983311,0.411305,98885.0,98884.0,0.11843698]
[1732309984412,0.411305,98885.0,98884.0,0.00151698]
[1732309984618,0.411305,98885.0,98884.0,0.11843698]
[1732309988121,0.411305,98885.0,98857.0,0.050519]
[1732309988122,0.050507,98882.0,98865.0,0.050515]
[1732309988329,0.050507,98882.0,98881.0,0.45628]
[1732309988524,0.050507,98882.0,98881.0,0.33932]
[1732309988724,0.050507,98882.0,98881.0,0.45628]
[1732309989126,0.050507,98882.0,98881.0,0.33932]
[1732309989328,0.050507,98882.0,98881.0,0.45628]
[1732309992229,0.050507,98882.0,98850.0,0.45924227]
[1732309992230,0.050514,98868.0,98867.0,0.11696]
[1732309992425,0.411314,98868.0,98867.0,0.11696]
[1732309993227,0.3608,98868.0,98867.0,0.11696]
[1732309993433,0.411314,98868.0,98867.0,0.11696]
[1732309993931,0.44476013,98868.0,98867.0,0.11696]
[1732309994531,0.050517,98862.0,98853.0,0.050521]
[1732309994837,0.3608,98859.0,98854.0,0.11696]
[1732309995231,0.3608,98856.0,98854.0,0.11696]
[1732309995833,0.00112001,98859.0,98854.0,0.11696]
[1732309996038,0.3608,98867.0,98854.0,0.11696]
[1732309996338,0.3608,98857.0,98847.0,0.00151758]
[1732309996534,0.3608,98848.0,98847.0,0.00151758]
[1732309996926,0.3608,98848.0,98847.0,0.11847758]
[1732309998442,0.3608,98848.0,98847.0,0.16900258]
[1732309999038,0.3608,98848.0,98847.0,0.11847758]
[1732309999429,0.3608,98848.0,98847.0,0.16900258]
[1732309999643,0.3608,98857.0,98847.0,0.11847758]
[1732309999843,0.3608,98857.0,98856.0,0.05052]
[1732310000135,0.00112001,98861.0,98856.0,0.05052]
[1732310000329,0.3608,98867.0,98861.0,0.050517]
[1732310000530,0.3608,98867.0,98862.0,0.11696]
[1732310002238,0.39548444,98867.0,98862.0,0.11696]
[1732310004433,0.050516,98863.0,98862.0,0.11696]
[1732310005442,0.411316,98863.0,98862.0,0.11696]
[1732310010243,0.3608,98863.0,98862.0,0.11696]
[1732310010838,0.3608,98866.0,98862.0,0.11696]
[1732310014238,0.050516,98864.0,98862.0,0.11696]
[1732310014740,0.3608,98866.0,98862.0,0.11696]
[1732310015738,0.03468444,98867.0,98864.0,0.050515]
[1732310015940,0.09792227,98872.0,98862.0,0.11696]
[1732310016136,0.39192001,98876.0,98866.0,0.050514]
[1732310016338,0.3908,98876.0,98862.0,0.11696]
[1732310016645,0.42411155,98876.0,98862.0,0.11696]
[1732310016842,0.42411155,98876.0,98867.0,0.050514]
[1732310017037,0.03331155,98876.0,98867.0,0.050514]
[1732310017238,0.0520265,98878.0,98867.0,0.050514]
[1732310017442,0.3608,98871.0,98864.0,0.050516]
[1732310017645,0.050509,98877.0,98862.0,0.11696]
[1732310017947,0.0015175,98878.0,98873.0,0.050511]
[1732310018142,0.03578526,98878.0,98864.0,0.050516]
[1732310018341,0.0015175,98878.0,98874.0,0.050511]
[1732310018646,0.0015175,98878.0,98876.0,0.05051]
[1732310018846,0.0015175,98878.0,98877.0,0.11676]
[1732310019445,0.0015175,98878.0,98877.0,0.167269]
[1732310019836,0.050496,98904.0,98877.0,0.470669]
[1732310020039,0.39192001,98903.0,98880.0,0.09792227]
[1732310020249,0.39192001,98903.0,98880.0,0.43724227]
[1732310020443,0.39192001,98903.0,98889.0,0.050503]
[1732310020648,0.00112001,98903.0,98889.0,0.050503]
[1732310020843,0.75272001,98909.0,98889.0,0.050503]
[1732310021050,0.3608,98896.0,98881.0,0.47756]
[1732310021346,0.3608,98896.0,98886.0,0.050505]
[1732310021641,0.78675989,98909.0,98886.0,0.050505]
[1732310021851,0.050498,98899.0,98886.0,0.050505]
[1732310022044,0.3608,98895.0,98885.0,0.050505]
[1732310022245,0.3608,98895.0,98881.0,0.47808]
[1732310022441,0.3608,98895.0,98884.0,0.050505]
[1732310022840,0.4113,98895.0,98881.0,0.47808]
[1732310023044,0.09792227,98900.0,98881.0,0.47756]
[1732310023752,0.050499,98898.0,98883.0,0.050506]
[1732310023953,0.0505,98896.0,98883.0,0.050506]
[1732310024455,0.3608,98889.0,98883.0,0.050506]
[1732310024653,0.050502,98892.0,98881.0,0.11728]
[1732310024855,0.3608,98889.0,98881.0,0.11676]
[1732310025354,0.3608,98889.0,98882.0,0.050506]
[1732310026148,0.3608,98899.0,98883.0,0.050506]
[1732310026348,0.3608,98889.0,98883.0,0.050506]
[1732310026548,0.0505,98896.0,98883.0,0.050506]
[1732310026759,0.3608,98889.0,98883.0,0.050506]
[1732310027452,0.3608,98889.0,98881.0,0.11676]
[1732310028573,0.39544689,98899.0,98881.0,0.11676]
[1732310028765,0.050499,98898.0,98883.0,0.050506]
[1732310029377,0.050499,98898.0,98884.0,0.050505]
[1732310030064,0.39540688,98899.0,98885.0,0.050505]
[1732310030260,0.39424688,98899.0,98885.0,0.050505]
[1732310031170,0.39424688,98899.0,98889.0,0.09792227]
[1732310031369,0.00955,98903.0,98889.0,0.45872227]
[1732310031670,0.00151752,98910.0,98899.0,0.3608]
[1732310031968,0.00151752,98910.0,98900.0,0.11672]
[1732310032174,0.00151752,98910.0,98909.0,0.3608]
[1732310032574,0.00151752,98910.0,98908.0,0.050493]
[1732310033173,0.00151752,98910.0,98901.0,0.3608]
[1732310033365,0.00151752,98910.0,98903.0,0.050495]
[1732310033669,0.00151752,98910.0,98900.0,0.11672]
[1732310033670,0.00151752,98910.0,98905.0,0.050494]
[1732310033877,0.00151752,98910.0,98907.0,0.050493]
[1732310034375,0.00151752,98910.0,98908.0,0.050492]
[1732310034778,0.0338164,98922.0,98905.0,0.050494]
[1732310035077,0.050485,98924.0,98905.0,0.050494]
[1732310035374,0.3608,98913.0,98905.0,0.050494]
[1732310035573,0.3608,98929.0,98905.0,0.050494]
[1732310035778,0.3945266,98929.0,98905.0,0.050494]
[1732310036474,0.050485,98922.0,98905.0,0.050494]
[1732310036780,0.050484,98925.0,98906.0,0.050493]
[1732310037076,0.3608,98913.0,98906.0,0.050493]
[1732310037277,0.3608,98913.0,98907.0,0.050493]
[1732310038869,0.050485,98923.0,98907.0,0.050493]
[1732310039071,0.050483,98927.0,98908.0,0.050492]
[1732310039271,0.050484,98924.0,98908.0,0.050492]
[1732310039576,0.050486,98921.0,98901.0,0.3608]
[1732310039977,0.050486,98921.0,98900.0,0.1497926]
[1732310040890,0.3945266,98929.0,98900.0,0.2002896]
[1732310041086,0.411287,98920.0,98900.0,0.1497926]
[1732310041298,0.411287,98920.0,98902.0,0.050496]
[1732310041299,0.3608,98909.0,98902.0,0.050496]
[1732310041703,0.3608,98910.0,98902.0,0.050496]
[1732310042011,0.09792227,98912.0,98903.0,0.1164]
[1732310042209,0.3608,98909.0,98903.0,0.1164]
[1732310042408,0.3608,98905.0,98903.0,0.1164]
[1732310045707,0.3608,98904.0,98896.0,0.0339332]
[1732310045909,0.3608,98904.0,98897.0,0.1164]
[1732310046197,0.3608,98904.0,98897.0,0.166898]
[1732310046587,0.3608,98904.0,98897.0,0.1164]
[1732310047293,0.3608,98904.0,98899.0,0.050497]
[1732310047680,0.3608,98904.0,98897.0,0.1164]
[1732310048493,0.050497,98901.0,98890.0,0.03321119]
[1732310048698,0.050497,98900.0,98898.0,0.1164]
[1732310048895,0.050497,98900.0,98899.0,0.1164]
[1732310049393,0.3608,98901.0,98899.0,0.1164]
[1732310049576,0.050497,98900.0,98899.0,0.1164]
[1732310049781,0.050499,98896.0,98881.0,0.050506]
[1732310049978,0.3608,98889.0,98882.0,0.1164]
[1732310050889,0.3608,98889.0,98880.0,0.33932]
[1732310051186,0.3608,98889.0,98883.0,0.1164]
[1732310053082,0.050505,98885.0,98883.0,0.1164]
[1732310053985,0.050511,98871.0,98870.0,0.1164]
[1732310054181,0.411311,98871.0,98870.0,0.1164]
[1732310057586,0.3938633,98871.0,98870.0,0.1164]
[1732310058093,0.3908,98881.0,98880.0,0.050507]
[1732310058595,0.42470752,98881.0,98880.0,0.050507]
[1732310059091,0.42470752,98881.0,98877.0,0.050508]
[1732310059284,0.42470752,98881.0,98876.0,0.050509]
[1732310059886,0.42470752,98881.0,98871.0,0.082011]
[1732310060082,0.03390752,98881.0,98877.0,0.11644]
[1732310060284,0.411305,98885.0,98877.0,0.11644]
[1732310060791,0.050505,98884.0,98877.0,0.11644]
[1732310060985,0.39465857,98885.0,98858.0,0.36132]
[1732310061192,0.3608,98863.0,98859.0,0.11644]
[1732310061390,0.3608,98863.0,98860.0,0.11644]
[1732310061591,0.3608,98863.0,98861.0,0.11644]
[1732310061893,0.3608,98863.0,98849.0,0.411322]
[1732310061894,0.3608,98863.0,98849.0,0.00052]
[1732310062085,0.3608,98852.0,98850.0,0.11644]
[1732310062286,0.3608,98852.0,98845.0,0.37440935]
[1732310062486,0.3608,98852.0,98846.0,0.11644]
[1732310063294,0.3608,98852.0,98846.0,0.166964]
[1732310064288,0.3608,98852.0,98846.0,0.11644]
[1732310065194,0.3608,98852.0,98846.0,0.166964]
[1732310065397,0.3608,98852.0,98845.0,0.37440935]
[1732310065695,0.3608,98852.0,98846.0,0.11644]
[1732310066594,0.3608,98848.0,98842.0,0.00151754]
[1732310066794,0.14844927,98840.0,98819.0,0.3608]
[1732310066989,0.3608,98833.0,98820.0,0.11644]
[1732310067194,0.3608,98833.0,98823.0,0.050536]
[1732310067686,0.3608,98824.0,98821.0,0.11644]
[1732310068599,0.050536,98823.0,98822.0,0.11644]
[1732310068795,0.3608,98824.0,98822.0,0.11644]
[1732310069009,0.411335,98824.0,98822.0,0.11644]
[1732310069506,0.3608,98824.0,98822.0,0.11644]
[1732310070396,0.3608,98832.0,98822.0,0.11644]
[1732310070600,0.3608,98832.0,98831.0,0.050532]
[1732310070793,0.39456086,98832.0,98831.0,0.050532]
[1732310070993,0.39456086,98832.0,98831.0,0.167012]
[1732310071292,0.03376086,98832.0,98831.0,0.167012]
[1732310071598,0.00120001,98839.0,98831.0,0.11648]
[1732310071900,0.3608,98845.0,98837.0,0.050528]
[1732310072102,0.3608,98845.0,98838.0,0.050528]
[1732310072300,0.3951494,98845.0,98838.0,0.050528]
[1732310072804,0.3951494,98845.0,98832.0,0.0316]
[1732310073098,0.3608,98845.0,98844.0,0.050525]
[1732310073294,0.00151806,98853.0,98844.0,0.11608]
[1732310073497,0.3608,98851.0,98849.0,0.050522]
[1732310073695,0.3608,98851.0,98850.0,0.050522]
[1732310073901,0.00151806,98853.0,98849.0,0.3608]
[1732310074102,0.00151806,98853.0,98852.0,0.050521]
[1732310074298,0.00151806,98853.0,98849.0,0.3608]
[1732310074299,0.3908,98873.0,98858.0,0.050518]
[1732310074601,0.3908,98873.0,98849.0,0.3608]
[1732310074602,0.39192001,98873.0,98859.0,0.11608]
[1732310074790,0.39192001,98873.0,98861.0,0.050516]
[1732310075104,0.39192001,98873.0,98861.0,0.166596]
[1732310075397,0.0304,98874.0,98861.0,0.166596]
[1732310075599,0.080909,98874.0,98861.0,0.11608]
[1732310075990,0.36192001,98879.0,98861.0,0.11608]
[1732310076196,0.3608,98879.0,98877.0,0.050508]
[1732310076389,0.36231755,98891.0,98869.0,0.09792227]
[1732310076390,0.3608,98880.0,98878.0,0.11608]
[1732310076803,0.050501,98890.0,98878.0,0.11608]
[1732310076994,0.36231755,98891.0,98879.0,0.3608]
[1732310077195,0.36231755,98891.0,98882.0,0.050505]
[1732310077396,0.39539493,98891.0,98879.0,0.3608]
[1732310078098,0.39539493,98891.0,98880.0,0.09792227]
[1732310078489,0.36231755,98891.0,98880.0,0.09792227]
[1732310078693,0.36231755,98891.0,98889.0,0.050501]
[1732310079204,0.36231755,98891.0,98884.0,0.050501]
[1732310081305,0.36231755,98891.0,98880.0,0.09792227]
[1732310081494,0.36231755,98891.0,98881.0,0.11608]
[1732310082690,0.36231755,98891.0,98880.0,0.09792227]
[1732310082994,0.36231755,98891.0,98881.0,0.11608]
[1732310085300,0.36231755,98891.0,98885.0,0.0505]
[1732310085498,0.36231755,98891.0,98887.0,0.050499]
[1732310086002,0.03405732,98894.0,98881.0,0.11608]
[1732310086003,0.00954,98902.0,98888.0,0.30336]
[1732310086195,0.3608,98910.0,98905.0,0.05049]
[1732310086396,0.3608,98910.0,98906.0,0.11604]
[1732310087501,0.39475679,98910.0,98906.0,0.11604]
[1732310090903,0.00953,98919.0,98907.0,0.050489]
[1732310091204,0.3608,98921.0,98909.0,0.09792227]
[1732310091512,0.3608,98921.0,98912.0,0.050486]
[1732310092300,0.3608,98921.0,98916.0,0.050484]
[1732310092501,0.39192001,98929.0,98917.0,0.33924]
[1732310092804,0.42466077,98929.0,98917.0,0.33924]
[1732310093011,0.47513877,98929.0,98917.0,0.33924]
[1732310094098,0.42466077,98929.0,98917.0,0.389724]
[1732310094301,0.42466077,98929.0,98918.0,0.050483]
[1732310095702,0.42466077,98929.0,98917.0,0.33924]
[1732310095909,0.05048,98924.0,98917.0,0.33924]
[1732310096808,0.03386077,98929.0,98917.0,0.33924]
[1732310096999,0.3608,98930.0,98917.0,0.33924]
[1732310097199,0.050479,98927.0,98917.0,0.33924]
[1732310098402,0.3608,98923.0,98918.0,0.11604]
[1732310098602,0.050483,98918.0,98917.0,0.33924]
[1732310098802,0.050483,98918.0,98917.0,0.45528]
[1732310099612,0.411283,98918.0,98917.0,0.33924]
[1732310099909,0.411283,98918.0,98917.0,0.45528]
[1732310100716,0.772083,98918.0,98917.0,0.45528]
[1732310101127,1.075363,98918.0,98917.0,0.33924]
[1732310101338,1.075363,98918.0,98917.0,0.45492]
[1732310101740,0.714563,98918.0,98917.0,0.45492]
[1732310103243,0.74784821,98918.0,98917.0,0.45492]
[1732310104330,0.39408521,98918.0,98917.0,0.45492]
[1732310105135,0.44456821,98918.0,98917.0,0.45492]
[1732310107034,0.39408521,98918.0,98917.0,0.45492]
[1732310107721,0.03328521,98918.0,98917.0,0.505404]
[1732310108033,0.411278,98928.0,98918.0,0.050483]
[1732310108239,0.411278,98928.0,98920.0,0.050482]
[1732310109543,0.3608,98928.0,98918.0,0.09792227]
[1732310110448,0.3608,98928.0,98920.0,0.050482]
[1732310111343,0.3608,98928.0,98918.0,0.09792227]
[1732310111529,0.3608,98928.0,98918.0,0.14840527]
[1732310112936,0.411278,98928.0,98918.0,0.09792227]
[1732310113135,0.3608,98928.0,98918.0,0.09792227]
[1732310113339,0.3608,98928.0,98920.0,0.050482]
[1732310113625,0.3608,98928.0,98918.0,0.09792227]
[1732310115061,0.03316952,98930.0,98918.0,0.09792227]
[1732310115366,0.3608,98957.0,98948.0,0.050468]
[1732310115567,0.3608,98957.0,98949.0,0.166147]
[1732310115763,0.3608,98957.0,98950.0,0.11568]
[1732310115960,0.3608,98957.0,98950.0,0.166147]
[1732310116164,0.03431908,98959.0,98951.0,0.3608]
[1732310116469,0.3936,98969.0,98951.0,0.3608]
[1732310116660,0.3608,98969.0,98951.0,0.3608]
[1732310117856,0.3608,98969.0,98951.0,0.47648]
[1732310118367,0.39504453,98969.0,98953.0,0.050465]
[1732310118568,0.39504453,98969.0,98954.0,0.33908]
[1732310118877,0.39504453,98969.0,98957.0,0.050463]
[1732310119669,0.39504453,98969.0,98954.0,0.33908]
[1732310119867,0.39504453,98969.0,98957.0,0.050463]
[1732310120761,0.39504453,98969.0,98958.0,0.050463]
[1732310121453,0.39504453,98969.0,98961.0,0.050461]
[1732310121657,0.3608,98969.0,98964.0,0.050459]
[1732310121951,0.3608,98969.0,98965.0,0.166099]
[1732310122348,0.3608,98969.0,98966.0,0.0308]
[1732310123742,0.3608,98969.0,98968.0,0.050458]
[1732310124645,0.3608,98969.0,98966.0,0.0308]
[1732310124837,0.3608,98969.0,98967.0,0.11564]
[1732310125544,0.3608,98969.0,98953.0,0.3608]
[1732310125742,0.050461,98962.0,98954.0,0.11564]
[1732310126049,0.050458,98967.0,98954.0,0.11564]
[1732310126532,0.48492001,98968.0,98953.0,0.33904]
[1732310126533,0.05046,98963.0,98955.0,0.11564]
[1732310126741,0.4838,98968.0,98955.0,0.11564]
[1732310126945,0.050458,98967.0,98955.0,0.11564]
[1732310127242,0.3608,98957.0,98955.0,0.11564]
[1732310129849,0.3608,98957.0,98956.0,0.11564]
[1732310133138,0.3608,98957.0,98956.0,0.11528]
[1732310134647,0.411263,98957.0,98956.0,0.11528]
[1732310134841,0.3608,98957.0,98956.0,0.11528]
[1732310135543,0.66396,98957.0,98942.0,0.0006]
[1732310135747,0.09792227,98952.0,98943.0,0.11528]
[1732310135946,0.050469,98945.0,98944.0,0.11528]
[1732310137245,0.050468,98947.0,98944.0,0.11528]
[1732310137440,0.0311,98946.0,98944.0,0.11528]
[1732310137740,0.050469,98945.0,98944.0,0.11528]
[1732310138148,0.113769,98945.0,98944.0,0.11528]
[1732310139145,0.14698575,98945.0,98944.0,0.11528]
[1732310142044,0.03321675,98945.0,98944.0,0.11528]
[1732310142347,0.0311,98946.0,98945.0,0.050469]
[1732310142544,0.3608,98949.0,98944.0,0.11528]
[1732310142743,0.3608,98949.0,98947.0,0.050468]
[1732310143145,0.3608,98949.0,98944.0,0.11528]
[1732310143545,0.3608,98949.0,98944.0,0.16575]
[1732310144151,0.3608,98949.0,98944.0,0.11528]
[1732310144350,0.3608,98949.0,98948.0,0.050468]
[1732310144548,0.3608,98957.0,98950.0,0.050466]
[1732310144745,0.3608,98957.0,98945.0,0.0306]
[1732310145251,0.3608,98957.0,98947.0,0.09792227]
[1732310145447,0.3608,98957.0,98953.0,0.050465]
[1732310146149,0.3608,98957.0,98948.0,0.0323]
[1732310146554,0.3608,98957.0,98956.0,0.050464]
[1732310147851,0.364201,98957.0,98956.0,0.050464]
[1732310150750,0.00151634,98965.0,98964.0,0.05046]
[1732310150955,0.00151634,98965.0,98964.0,0.50478]
[1732310151156,0.00151634,98965.0,98964.0,0.33904]
[1732310151349,0.05197534,98965.0,98964.0,0.33904]
[1732310151551,0.00151634,98965.0,98964.0,0.45432]
[1732310152753,0.05197534,98965.0,98964.0,0.45432]
[1732310153058,0.050462,98959.0,98958.0,0.11528]
[1732310154354,0.0323,98964.0,98958.0,0.11528]
[1732310155859,0.00151634,98965.0,98958.0,0.11528]
[1732310156063,0.00151634,98965.0,98964.0,0.05046]
[1732310156556,0.00151634,98965.0,98959.0,0.0315]
[1732310156952,0.00028017,98965.0,98964.0,0.05046]
[1732310158957,0.7516,98988.0,98959.0,0.05905605]
[1732310159260,0.412408,98988.0,98973.0,0.050455]
[1732310159455,0.02757231,98980.0,98973.0,0.165735]
[1732310160258,0.3608,98988.0,98973.0,0.165735]
[1732310160461,0.3608,98993.0,98973.0,0.11528]
[1732310160659,0.3608,98993.0,98980.0,0.09792227]
[1732310161259,0.3608,98993.0,98975.0,0.050454]
[1732310161563,0.411245,98993.0,98980.0,0.050451]
[1732310161775,0.43856709,98993.0,98980.0,0.050451]
[1732310162268,0.38812209,98993.0,98980.0,0.050451]
[1732310162458,0.38812209,98993.0,98974.0,0.0308]
[1732310162653,0.38812209,98993.0,98982.0,0.05045]
[1732310163259,0.38812209,98993.0,98983.0,0.05045]
[1732310163467,0.38812209,98993.0,98982.0,0.05045]
[1732310163662,0.3608,98993.0,98980.0,0.09792227]